[Event "Titled Tuesday Blitz February 22 Early 2022"]
[White "Sargsyan, Anna M."]
[Black "Oparin, Grigoriy"]
[WhiteFideId "13308130"]
[BlackFideId "24125890"]
[WhiteElo "2271"]
[BlackElo "2685"]
[Result "0-1"]
[Round "02"]
[TimeControl "180+1"]
[Date "2022.02.22"]
[WhiteClock "0:00:11"]
[BlackClock "0:00:19"]

1. e4 {[%clk 0:03:00]}  e5 {[%clk 0:02:59]} 2. Nf3 {[%clk 0:03:00]}  Nc6 {[%clk 0:03:00]} 3. Bc4 {[%clk 0:02:58]}  Nf6 {[%clk 0:02:59]} 4. d3 {[%clk 0:02:56]}  h6 {[%clk 0:02:58]} 5. Nbd2 {[%clk 0:02:47]}  g5 {[%clk 0:02:56]} 6. c3 {[%clk 0:02:46]}  Bg7 {[%clk 0:02:56]} 7. Nf1 {[%clk 0:02:46]}  g4 {[%clk 0:02:53]} 8. N3d2 {[%clk 0:02:44]}  d5 {[%clk 0:02:53]} 9. exd5 {[%clk 0:02:44]}  Nxd5 {[%clk 0:02:54]} 10. Ng3 {[%clk 0:02:44]}  h5 {[%clk 0:02:51]} 11. Qb3 {[%clk 0:02:37]}  Na5 {[%clk 0:02:48]} 12. Qa4+ {[%clk 0:02:35]}  Nc6 {[%clk 0:02:47]} 13. Qb3 {[%clk 0:02:35]}  Nce7 {[%clk 0:02:46]} 14. Nde4 {[%clk 0:02:25]}  h4 {[%clk 0:02:37]} 15. Ne2 {[%clk 0:02:25]}  c6 {[%clk 0:02:29]} 16. a4 {[%clk 0:02:25]}  f5 {[%clk 0:02:25]} 17. Nc5 {[%clk 0:02:24]}  b6 {[%clk 0:02:23]} 18. Na6 {[%clk 0:02:20]}  Qd6 {[%clk 0:02:07]} 19. Bg5 {[%clk 0:02:13]}  f4 {[%clk 0:02:01]} 20. Bxe7 {[%clk 0:02:09]}  Nxe7 {[%clk 0:02:01]} 21. Nb4 {[%clk 0:01:59]}  f3 {[%clk 0:01:49]} 22. gxf3 {[%clk 0:01:59]}  gxf3 {[%clk 0:01:50]} 23. Ng1 {[%clk 0:01:53]}  Qg6 {[%clk 0:01:44]} 24. Nxf3 {[%clk 0:01:33]}  Qg2 {[%clk 0:01:44]} 25. Rg1 {[%clk 0:01:33]}  Qxf3 {[%clk 0:01:41]} 26. Rxg7 {[%clk 0:01:34]}  Bg4 {[%clk 0:01:36]} 27. Kd2 {[%clk 0:01:01]}  Qxf2+ {[%clk 0:01:19]} 28. Kc1 {[%clk 0:01:02]}  Qe1+ {[%clk 0:01:19]} 29. Kc2 {[%clk 0:01:02]}  Qxa1 {[%clk 0:01:19]} 30. Bf7+ {[%clk 0:00:59]}  Kf8 {[%clk 0:01:13]} 31. Rxg4 {[%clk 0:00:55]}  Qf1 {[%clk 0:00:59]} 32. Be6 {[%clk 0:00:54]}  Rd8 {[%clk 0:00:57]} 33. Qc4 {[%clk 0:00:48]}  Rh6 {[%clk 0:00:48]} 34. Na6 {[%clk 0:00:31]}  Rf6 {[%clk 0:00:38]} 35. Kb3 {[%clk 0:00:30]}  Qxd3 {[%clk 0:00:36]} 36. Qxd3 {[%clk 0:00:25]}  Rxd3 {[%clk 0:00:37]} 37. Bc4 {[%clk 0:00:25]}  Rd2 {[%clk 0:00:36]} 38. Rxh4 {[%clk 0:00:25]}  Rff2 {[%clk 0:00:34]} 39. Nc7 {[%clk 0:00:24]}  Rxb2+ {[%clk 0:00:33]} 40. Ka3 {[%clk 0:00:24]}  Nd5 {[%clk 0:00:33]} 41. Nxd5 {[%clk 0:00:20]}  cxd5 {[%clk 0:00:33]} 42. Bxd5 {[%clk 0:00:21]}  Rbc2 {[%clk 0:00:31]} 43. Rh3 {[%clk 0:00:20]}  Ke7 {[%clk 0:00:30]} 44. Bb3 {[%clk 0:00:20]}  Rcd2 {[%clk 0:00:27]} 45. Rh7+ {[%clk 0:00:20]}  Kd6 {[%clk 0:00:28]} 46. Rxa7 {[%clk 0:00:21]}  Rxh2 {[%clk 0:00:28]} 47. Rb7 {[%clk 0:00:20]}  e4 {[%clk 0:00:26]} 48. Rxb6+ {[%clk 0:00:20]}  Ke5 {[%clk 0:00:25]} 49. a5 {[%clk 0:00:20]}  e3 {[%clk 0:00:24]} 50. a6 {[%clk 0:00:20]}  Rh1 {[%clk 0:00:23]} 51. Kb4 {[%clk 0:00:19]}  Ra1 {[%clk 0:00:20]} 52. Kc5 {[%clk 0:00:16]}  e2 {[%clk 0:00:20]} 53. Re6+ {[%clk 0:00:15]}  Kf4 {[%clk 0:00:21]} 54. Bd5 {[%clk 0:00:12]}  Rxa6 {[%clk 0:00:18]} 55. Rxe2 {[%clk 0:00:11]}  Rxe2 {[%clk 0:00:18]} 56. Bc4 {[%clk 0:00:12]}  Re5+ {[%clk 0:00:19]} 57. Kd4 {[%clk 0:00:11]}  Rd6+ {[%clk 0:00:19]} 0-1


[Site "https://www.chess.com"]

[Event "Titled Tuesday Blitz February 22 Early 2022"]
[White "Sarkar, Justin"]
[Black "Carlsson, Ludvig"]
[WhiteFideId "2010011"]
[BlackFideId "1727010"]
[WhiteElo "2038"]
[BlackElo "2178"]
[Result "0-1"]
[Round "02"]
[TimeControl "180+1"]
[Date "2022.02.22"]
[WhiteClock "0:00:01"]
[BlackClock "0:02:19"]

1. e4 {[%clk 0:03:00]}  e5 {[%clk 0:02:57]} 2. f4 {[%clk 0:02:58]}  Nf6 {[%clk 0:02:54]} 3. fxe5 {[%clk 0:02:50]}  Nxe4 {[%clk 0:02:54]} 4. Nf3 {[%clk 0:02:50]}  Ng5 {[%clk 0:02:54]} 5. d4 {[%clk 0:02:50]}  Nxf3+ {[%clk 0:02:54]} 6. Qxf3 {[%clk 0:02:49]}  Qh4+ {[%clk 0:02:55]} 7. Qf2 {[%clk 0:02:49]}  Qxf2+ {[%clk 0:02:55]} 8. Kxf2 {[%clk 0:02:49]}  Nc6 {[%clk 0:02:55]} 9. Be3 {[%clk 0:02:42]}  d6 {[%clk 0:02:55]} 10. exd6 {[%clk 0:02:30]}  Bxd6 {[%clk 0:02:56]} 11. Nc3 {[%clk 0:02:29]}  O-O {[%clk 0:02:52]} 12. Nb5 {[%clk 0:02:25]}  Bf5 {[%clk 0:02:52]} 13. c3 {[%clk 0:02:18]}  Rfe8 {[%clk 0:02:51]} 14. Nxd6 {[%clk 0:02:16]}  cxd6 {[%clk 0:02:52]} 15. Bc4 {[%clk 0:02:11]}  Rac8 {[%clk 0:02:51]} 16. Bd5 {[%clk 0:02:07]}  Be4 {[%clk 0:02:50]} 17. Bxe4 {[%clk 0:02:02]}  Rxe4 {[%clk 0:02:51]} 18. Rhe1 {[%clk 0:02:00]}  d5 {[%clk 0:02:51]} 19. Bd2 {[%clk 0:01:46]}  Rce8 {[%clk 0:02:51]} 20. Rxe4 {[%clk 0:01:42]}  Rxe4 {[%clk 0:02:52]} 21. a4 {[%clk 0:01:36]}  Na5 {[%clk 0:02:49]} 22. Rd1 {[%clk 0:01:23]}  f5 {[%clk 0:02:49]} 23. g3 {[%clk 0:01:05]}  Kf7 {[%clk 0:02:48]} 24. Bf4 {[%clk 0:01:03]}  h6 {[%clk 0:02:48]} 25. h4 {[%clk 0:01:01]}  g6 {[%clk 0:02:39]} 26. Bxh6 {[%clk 0:00:59]}  Nc4 {[%clk 0:02:39]} 27. b3 {[%clk 0:00:55]}  Nd6 {[%clk 0:02:39]} 28. Bf4 {[%clk 0:00:53]}  Ne8 {[%clk 0:02:39]} 29. Re1 {[%clk 0:00:49]}  Nf6 {[%clk 0:02:39]} 30. Rd1 {[%clk 0:00:15]}  Ke6 {[%clk 0:02:38]} 31. Rd3 {[%clk 0:00:12]}  a6 {[%clk 0:02:37]} 32. c4 {[%clk 0:00:09]}  Ng4+ {[%clk 0:02:33]} 33. Kf3 {[%clk 0:00:08]}  Re1 {[%clk 0:02:33]} 34. c5 {[%clk 0:00:04]}  Rf1+ {[%clk 0:02:32]} 35. Ke2 {[%clk 0:00:04]}  Rf2+ {[%clk 0:02:33]} 36. Ke1 {[%clk 0:00:04]}  Rb2 {[%clk 0:02:32]} 37. Bc7 {[%clk 0:00:02]}  Kd7 {[%clk 0:02:31]} 38. Ba5 {[%clk 0:00:02]}  Kc6 {[%clk 0:02:30]} 39. Bd2 {[%clk 0:00:02]}  Nf6 {[%clk 0:02:28]} 40. b4 {[%clk 0:00:02]}  Ne4 {[%clk 0:02:28]} 41. Bf4 {[%clk 0:00:01]}  Ra2 {[%clk 0:02:26]} 42. b5+ {[%clk 0:00:01]}  axb5 {[%clk 0:02:24]} 43. axb5+ {[%clk 0:00:01]}  Kxb5 {[%clk 0:02:25]} 44. Rb3+ {[%clk 0:00:01]}  Kc4 {[%clk 0:02:25]} 45. Rxb7 {[%clk 0:00:02]}  Kd3 {[%clk 0:02:25]} 46. Kf1 {[%clk 0:00:01]}  Kxd4 {[%clk 0:02:23]} 47. c6 {[%clk 0:00:01]}  Nd2+ {[%clk 0:02:19]} 0-1


[Site "https://www.chess.com"]

[Event "Titled Tuesday Blitz February 22 Early 2022"]
[White "Shahaliyev, Ismayil"]
[Black "Wartiovaara, Oliver"]
[WhiteFideId "13406388"]
[BlackFideId "513024"]
[WhiteElo "2105"]
[BlackElo "1971"]
[Result "1-0"]
[Round "02"]
[TimeControl "180+1"]
[Date "2022.02.22"]
[WhiteClock "0:00:24"]
[BlackClock "0:00:10"]

1. d4 {[%clk 0:03:00]}  Nf6 {[%clk 0:02:58]} 2. Nf3 {[%clk 0:03:00]}  g6 {[%clk 0:02:57]} 3. g3 {[%clk 0:02:59]}  Bg7 {[%clk 0:02:57]} 4. Bg2 {[%clk 0:02:59]}  O-O {[%clk 0:02:58]} 5. O-O {[%clk 0:02:59]}  d6 {[%clk 0:02:59]} 6. a4 {[%clk 0:02:57]}  Nbd7 {[%clk 0:02:47]} 7. a5 {[%clk 0:02:57]}  a6 {[%clk 0:02:45]} 8. c4 {[%clk 0:02:53]}  e5 {[%clk 0:02:44]} 9. d5 {[%clk 0:02:52]}  e4 {[%clk 0:02:32]} 10. Nd4 {[%clk 0:02:46]}  Re8 {[%clk 0:02:21]} 11. Nc3 {[%clk 0:02:45]}  Qe7 {[%clk 0:02:12]} 12. Ra4 {[%clk 0:02:15]}  Nc5 {[%clk 0:02:06]} 13. Ra3 {[%clk 0:02:15]}  Ng4 {[%clk 0:01:46]} 14. b4 {[%clk 0:02:11]}  Qe5 {[%clk 0:01:39]} 15. bxc5 {[%clk 0:01:45]}  Qxd4 {[%clk 0:01:38]} 16. cxd6 {[%clk 0:01:35]}  e3 {[%clk 0:01:07]} 17. f3 {[%clk 0:01:15]}  Nf2 {[%clk 0:00:41]} 18. Qxd4 {[%clk 0:01:14]}  Bxd4 {[%clk 0:00:41]} 19. dxc7 {[%clk 0:01:12]}  Re7 {[%clk 0:00:28]} 20. Nd1 {[%clk 0:00:54]}  Nh3+ {[%clk 0:00:25]} 21. Kh1 {[%clk 0:00:35]}  Rxc7 {[%clk 0:00:16]} 22. Nxe3 {[%clk 0:00:35]}  Bd7 {[%clk 0:00:11]} 23. Rd3 {[%clk 0:00:28]}  Bxe3 {[%clk 0:00:10]} 24. Bxe3 {[%clk 0:00:27]}  Re8 {[%clk 0:00:10]} 25. g4 {[%clk 0:00:24]} 1-0


[Site "https://www.chess.com"]

[Event "Titled Tuesday Blitz February 22 Early 2022"]
[White "Shohat, Yotam"]
[Black "Zanette, Edgard Vinicius"]
[WhiteFideId "2813955"]
[BlackFideId "2109263"]
[WhiteElo "2119"]
[BlackElo "2182"]
[Result "1-0"]
[Round "02"]
[TimeControl "180+1"]
[Date "2022.02.22"]
[WhiteClock "0:02:28"]
[BlackClock "0:00:45"]

1. e4 {[%clk 0:03:00]}  e5 {[%clk 0:02:59]} 2. f4 {[%clk 0:03:01]}  exf4 {[%clk 0:02:59]} 3. Bc4 {[%clk 0:03:01]}  Nf6 {[%clk 0:02:58]} 4. Nc3 {[%clk 0:03:00]}  d6 {[%clk 0:02:32]} 5. d4 {[%clk 0:02:57]}  g5 {[%clk 0:02:31]} 6. h4 {[%clk 0:02:56]}  Bh6 {[%clk 0:02:23]} 7. hxg5 {[%clk 0:02:52]}  Bxg5 {[%clk 0:02:23]} 8. Nf3 {[%clk 0:02:52]}  Ng4 {[%clk 0:01:48]} 9. Nxg5 {[%clk 0:02:44]}  Qxg5 {[%clk 0:01:46]} 10. Qf3 {[%clk 0:02:45]}  Nc6 {[%clk 0:01:05]} 11. Bxf4 {[%clk 0:02:38]}  Nxd4 {[%clk 0:00:53]} 12. Bxg5 {[%clk 0:02:36]}  Nxf3+ {[%clk 0:00:53]} 13. gxf3 {[%clk 0:02:37]}  Ne5 {[%clk 0:00:53]} 14. Bb5+ {[%clk 0:02:34]}  c6 {[%clk 0:00:53]} 15. Be2 {[%clk 0:02:34]}  Be6 {[%clk 0:00:47]} 16. O-O-O {[%clk 0:02:33]}  h5 {[%clk 0:00:45]} 17. Rxd6 {[%clk 0:02:28]} 1-0


[Site "https://www.chess.com"]

[Event "Titled Tuesday Blitz February 22 Early 2022"]
[White "Shton, Roman"]
[Black "Coto Mederos, Michel"]
[WhiteFideId "14137461"]
[BlackFideId "3508528"]
[WhiteElo "2038"]
[BlackElo "2427"]
[Result "0-1"]
[Round "02"]
[TimeControl "180+1"]
[Date "2022.02.22"]
[WhiteClock "0:00:53"]
[BlackClock "0:01:40"]

1. d4 {[%clk 0:02:57]}  d5 {[%clk 0:02:59]} 2. Nf3 {[%clk 0:02:57]}  Nf6 {[%clk 0:03:00]} 3. g3 {[%clk 0:02:57]}  e6 {[%clk 0:02:52]} 4. Bg2 {[%clk 0:02:58]}  c5 {[%clk 0:02:52]} 5. O-O {[%clk 0:02:57]}  Be7 {[%clk 0:02:51]} 6. c4 {[%clk 0:02:57]}  Nc6 {[%clk 0:02:50]} 7. cxd5 {[%clk 0:01:49]}  exd5 {[%clk 0:02:49]} 8. Nc3 {[%clk 0:01:49]}  O-O {[%clk 0:02:47]} 9. Bg5 {[%clk 0:01:33]}  cxd4 {[%clk 0:02:42]} 10. Nxd4 {[%clk 0:01:30]}  Bg4 {[%clk 0:02:24]} 11. h3 {[%clk 0:01:22]}  Bh5 {[%clk 0:02:22]} 12. Nf5 {[%clk 0:01:13]}  Qb6 {[%clk 0:01:49]} 13. Bxf6 {[%clk 0:01:09]}  Bxf6 {[%clk 0:01:46]} 14. Nxd5 {[%clk 0:01:09]}  Qxb2 {[%clk 0:01:46]} 15. Rb1 {[%clk 0:01:02]}  Qe5 {[%clk 0:01:45]} 16. e4 {[%clk 0:00:53]}  Bxd1 {[%clk 0:01:40]} 0-1


[Site "https://www.chess.com"]

[Event "Titled Tuesday Blitz February 22 Early 2022"]
[White "Shuvalov, Evgenij"]
[Black "Szpar, Milosz"]
[WhiteFideId "4187237"]
[BlackFideId "1184989"]
[WhiteElo "2119"]
[BlackElo "2447"]
[Result "0-1"]
[Round "02"]
[TimeControl "180+1"]
[Date "2022.02.22"]
[WhiteClock "0:00:13"]
[BlackClock "0:00:41"]

1. Nf3 {[%clk 0:03:00]}  c5 {[%clk 0:02:56]} 2. c4 {[%clk 0:03:00]}  Nf6 {[%clk 0:02:54]} 3. g3 {[%clk 0:03:00]}  e6 {[%clk 0:02:49]} 4. Bg2 {[%clk 0:02:59]}  d5 {[%clk 0:02:49]} 5. cxd5 {[%clk 0:02:58]}  exd5 {[%clk 0:02:49]} 6. d4 {[%clk 0:02:58]}  Nc6 {[%clk 0:02:50]} 7. Nc3 {[%clk 0:02:58]}  cxd4 {[%clk 0:02:47]} 8. Nxd4 {[%clk 0:02:58]}  Bc5 {[%clk 0:02:47]} 9. Nb3 {[%clk 0:02:53]}  Bb6 {[%clk 0:02:42]} 10. O-O {[%clk 0:02:51]}  d4 {[%clk 0:02:40]} 11. Na4 {[%clk 0:02:50]}  O-O {[%clk 0:02:39]} 12. Bg5 {[%clk 0:02:47]}  Re8 {[%clk 0:02:26]} 13. Nxb6 {[%clk 0:02:45]}  axb6 {[%clk 0:02:26]} 14. Bxc6 {[%clk 0:02:19]}  bxc6 {[%clk 0:02:26]} 15. Nxd4 {[%clk 0:02:17]}  h6 {[%clk 0:02:03]} 16. Be3 {[%clk 0:01:58]}  Bh3 {[%clk 0:01:58]} 17. Re1 {[%clk 0:01:57]}  c5 {[%clk 0:01:44]} 18. Nf3 {[%clk 0:01:51]}  Qc7 {[%clk 0:01:34]} 19. b4 {[%clk 0:01:17]}  Rad8 {[%clk 0:01:24]} 20. Qc2 {[%clk 0:01:11]}  Nd5 {[%clk 0:01:21]} 21. Bd2 {[%clk 0:01:06]}  c4 {[%clk 0:01:11]} 22. a4 {[%clk 0:00:56]}  c3 {[%clk 0:01:03]} 23. Bc1 {[%clk 0:00:36]}  Nxb4 {[%clk 0:01:03]} 24. Qb3 {[%clk 0:00:34]}  Qc6 {[%clk 0:01:00]} 25. Be3 {[%clk 0:00:23]}  Nd5 {[%clk 0:00:54]} 26. Bd4 {[%clk 0:00:16]}  Nf4 {[%clk 0:00:41]} 27. Be3 {[%clk 0:00:13]}  Nxe2+ {[%clk 0:00:40]} 28. Rxe2 {[%clk 0:00:13]}  Qxf3 {[%clk 0:00:41]} 0-1


[Site "https://www.chess.com"]

[Event "Titled Tuesday Blitz February 22 Early 2022"]
[White "Singh, Arvinder Preet"]
[Black "Matinian, Nikita"]
[WhiteFideId "5013240"]
[BlackFideId "24129100"]
[WhiteElo "2147"]
[BlackElo "2422"]
[Result "0-1"]
[Round "02"]
[TimeControl "180+1"]
[Date "2022.02.22"]
[WhiteClock "0:00:23"]
[BlackClock "0:01:46"]

1. e4 {[%clk 0:03:00]}  c5 {[%clk 0:02:58]} 2. Nf3 {[%clk 0:03:00]}  d6 {[%clk 0:02:58]} 3. d4 {[%clk 0:03:00]}  cxd4 {[%clk 0:02:58]} 4. Nxd4 {[%clk 0:03:00]}  Nf6 {[%clk 0:02:58]} 5. Nc3 {[%clk 0:03:00]}  g6 {[%clk 0:02:58]} 6. Be3 {[%clk 0:02:59]}  Nc6 {[%clk 0:02:58]} 7. Be2 {[%clk 0:02:55]}  Bg7 {[%clk 0:02:58]} 8. O-O {[%clk 0:02:54]}  O-O {[%clk 0:02:58]} 9. f4 {[%clk 0:02:53]}  Qb6 {[%clk 0:02:58]} 10. Nf5 {[%clk 0:02:37]}  Qxb2 {[%clk 0:02:57]} 11. Na4 {[%clk 0:02:00]}  Qa3 {[%clk 0:02:56]} 12. c3 {[%clk 0:02:00]}  Nxe4 {[%clk 0:02:15]} 13. Bc1 {[%clk 0:01:39]}  Nxc3 {[%clk 0:02:11]} 14. Bxa3 {[%clk 0:01:39]}  Nxd1 {[%clk 0:02:11]} 15. Nxg7 {[%clk 0:01:38]}  Ne3 {[%clk 0:02:10]} 16. Rf3 {[%clk 0:01:33]}  Nc2 {[%clk 0:02:09]} 17. Bb2 {[%clk 0:00:51]}  Nxa1 {[%clk 0:02:08]} 18. Bxa1 {[%clk 0:00:51]}  f6 {[%clk 0:02:05]} 19. Nh5 {[%clk 0:00:47]}  gxh5 {[%clk 0:02:06]} 20. f5 {[%clk 0:00:47]}  Ne5 {[%clk 0:02:04]} 21. Rg3+ {[%clk 0:00:47]}  Kh8 {[%clk 0:02:04]} 22. Bxh5 {[%clk 0:00:47]}  Bxf5 {[%clk 0:02:04]} 23. Bxe5 {[%clk 0:00:43]}  dxe5 {[%clk 0:02:04]} 24. Nc3 {[%clk 0:00:44]}  Rac8 {[%clk 0:02:03]} 25. Nd5 {[%clk 0:00:43]}  Rc1+ {[%clk 0:02:03]} 26. Kf2 {[%clk 0:00:43]}  Rc2+ {[%clk 0:02:00]} 27. Kf1 {[%clk 0:00:40]}  e6 {[%clk 0:01:54]} 28. Ne3 {[%clk 0:00:40]}  Rc1+ {[%clk 0:01:54]} 29. Ke2 {[%clk 0:00:40]}  Rd8 {[%clk 0:01:51]} 30. Nxf5 {[%clk 0:00:32]}  exf5 {[%clk 0:01:51]} 31. Bf7 {[%clk 0:00:33]}  f4 {[%clk 0:01:49]} 32. Rg4 {[%clk 0:00:32]}  Rc2+ {[%clk 0:01:48]} 33. Kf3 {[%clk 0:00:31]}  f5 {[%clk 0:01:47]} 34. h4 {[%clk 0:00:23]}  Rd3# {[%clk 0:01:46]} 0-1


[Site "https://www.chess.com"]

[Event "Titled Tuesday Blitz February 22 Early 2022"]
[White "Steenbekkers, Franck"]
[Black "Gulevich, Artem"]
[WhiteFideId "1004220"]
[BlackFideId "24119580"]
[WhiteElo "2136"]
[BlackElo "2218"]
[Result "0-1"]
[Round "02"]
[TimeControl "180+1"]
[Date "2022.02.22"]
[WhiteClock "0:00:02"]
[BlackClock "0:00:17"]

1. e4 {[%clk 0:02:09]}  c5 {[%clk 0:02:18]} 2. Nf3 {[%clk 0:02:07]}  Nc6 {[%clk 0:02:17]} 3. Bb5 {[%clk 0:02:05]}  Qb6 {[%clk 0:02:16]} 4. Nc3 {[%clk 0:02:02]}  Nd4 {[%clk 0:02:16]} 5. Nd5 {[%clk 0:01:55]}  Qg6 {[%clk 0:02:15]} 6. Nxd4 {[%clk 0:01:45]}  Qxe4+ {[%clk 0:02:14]} 7. Ne2 {[%clk 0:01:24]}  Qxd5 {[%clk 0:02:08]} 8. O-O {[%clk 0:01:21]}  e6 {[%clk 0:02:05]} 9. d4 {[%clk 0:01:17]}  cxd4 {[%clk 0:02:00]} 10. c4 {[%clk 0:01:14]}  Qc5 {[%clk 0:01:39]} 11. Nxd4 {[%clk 0:01:11]}  a6 {[%clk 0:01:36]} 12. Ba4 {[%clk 0:01:03]}  Nf6 {[%clk 0:01:34]} 13. Be3 {[%clk 0:00:59]}  Qc7 {[%clk 0:01:33]} 14. Re1 {[%clk 0:00:50]}  Be7 {[%clk 0:01:30]} 15. c5 {[%clk 0:00:43]}  O-O {[%clk 0:01:26]} 16. b4 {[%clk 0:00:42]}  d5 {[%clk 0:01:16]} 17. Rc1 {[%clk 0:00:38]}  Bd7 {[%clk 0:01:14]} 18. Bb3 {[%clk 0:00:36]}  Rfe8 {[%clk 0:00:59]} 19. a4 {[%clk 0:00:35]}  a5 {[%clk 0:00:42]} 20. b5 {[%clk 0:00:34]}  Ne4 {[%clk 0:00:40]} 21. c6 {[%clk 0:00:32]}  bxc6 {[%clk 0:00:39]} 22. bxc6 {[%clk 0:00:28]}  Bc8 {[%clk 0:00:38]} 23. Nb5 {[%clk 0:00:27]}  Qd8 {[%clk 0:00:30]} 24. Qf3 {[%clk 0:00:22]}  Nd6 {[%clk 0:00:24]} 25. Bf4 {[%clk 0:00:17]}  Ba6 {[%clk 0:00:20]} 26. c7 {[%clk 0:00:14]}  Qd7 {[%clk 0:00:20]} 27. Qe2 {[%clk 0:00:03]}  Nxb5 {[%clk 0:00:16]} 28. axb5 {[%clk 0:00:02]}  Bxb5 {[%clk 0:00:17]} 0-1


[Site "https://www.chess.com"]

[Event "Titled Tuesday Blitz February 22 Early 2022"]
[White "Svane, Frederik"]
[Black "Maltsevskaya, Aleksandra"]
[WhiteFideId "12923044"]
[BlackFideId "24174041"]
[WhiteElo "2459"]
[BlackElo "2283"]
[Result "0-1"]
[Round "02"]
[TimeControl "180+1"]
[Date "2022.02.22"]
[WhiteClock "0:00:34"]
[BlackClock "0:00:28"]

1. e4 {[%clk 0:03:00]}  c5 {[%clk 0:02:59]} 2. Nf3 {[%clk 0:03:00]}  e6 {[%clk 0:03:00]} 3. d4 {[%clk 0:03:00]}  cxd4 {[%clk 0:03:01]} 4. Nxd4 {[%clk 0:03:01]}  Nf6 {[%clk 0:03:01]} 5. Nc3 {[%clk 0:03:00]}  Nc6 {[%clk 0:03:02]} 6. Be2 {[%clk 0:03:01]}  Bb4 {[%clk 0:03:01]} 7. O-O {[%clk 0:03:01]}  O-O {[%clk 0:03:00]} 8. Nxc6 {[%clk 0:02:47]}  bxc6 {[%clk 0:03:01]} 9. e5 {[%clk 0:02:46]}  Nd5 {[%clk 0:02:59]} 10. Ne4 {[%clk 0:02:46]}  f5 {[%clk 0:02:56]} 11. Nd6 {[%clk 0:02:21]}  Bxd6 {[%clk 0:02:51]} 12. exd6 {[%clk 0:02:22]}  a5 {[%clk 0:02:48]} 13. c4 {[%clk 0:02:20]}  Nf6 {[%clk 0:02:48]} 14. Bf4 {[%clk 0:02:16]}  c5 {[%clk 0:02:45]} 15. Rb1 {[%clk 0:02:06]}  a4 {[%clk 0:02:45]} 16. Be3 {[%clk 0:02:04]}  Qa5 {[%clk 0:02:28]} 17. Qe1 {[%clk 0:02:04]}  Qb6 {[%clk 0:02:22]} 18. b4 {[%clk 0:02:02]}  axb3 {[%clk 0:02:21]} 19. axb3 {[%clk 0:02:03]}  Qxd6 {[%clk 0:02:21]} 20. Bf3 {[%clk 0:01:53]}  Rb8 {[%clk 0:02:21]} 21. Qc3 {[%clk 0:01:52]}  Bb7 {[%clk 0:02:16]} 22. Rfd1 {[%clk 0:01:52]}  Qc7 {[%clk 0:02:16]} 23. Bxb7 {[%clk 0:01:51]}  Rxb7 {[%clk 0:02:17]} 24. b4 {[%clk 0:01:49]}  Ng4 {[%clk 0:01:56]} 25. Bxc5 {[%clk 0:01:31]}  Qxh2+ {[%clk 0:01:36]} 26. Kf1 {[%clk 0:01:31]}  Ra8 {[%clk 0:01:18]} 27. Qh3 {[%clk 0:00:42]}  Qf4 {[%clk 0:01:16]} 28. Qc3 {[%clk 0:00:38]}  Ra2 {[%clk 0:01:11]} 29. Rb2 {[%clk 0:00:36]}  Rxb2 {[%clk 0:01:05]} 30. Qxb2 {[%clk 0:00:37]}  Qxc4+ {[%clk 0:01:06]} 31. Kg1 {[%clk 0:00:37]}  Qxc5 {[%clk 0:01:06]} 32. Rxd7 {[%clk 0:00:34]}  Rxd7 {[%clk 0:00:29]} 33. bxc5 {[%clk 0:00:34]}  Rd1# {[%clk 0:00:28]} 0-1


[Site "https://www.chess.com"]

[Event "Titled Tuesday Blitz February 22 Early 2022"]
[White "Tasev, Dejan"]
[Black "Bortnyk, Olexandr"]
[WhiteFideId "936618"]
[BlackFideId "14120828"]
[WhiteElo "2253"]
[BlackElo "2723"]
[Result "0-1"]
[Round "02"]
[TimeControl "180+1"]
[Date "2022.02.22"]
[WhiteClock "0:00:20"]
[BlackClock "0:00:07"]

1. e4 {[%clk 0:03:00]}  Nf6 {[%clk 0:02:56]} 2. e5 {[%clk 0:03:00]}  Nd5 {[%clk 0:02:54]} 3. Nc3 {[%clk 0:03:00]}  Nb6 {[%clk 0:02:52]} 4. d4 {[%clk 0:03:00]}  d5 {[%clk 0:02:52]} 5. exd6 {[%clk 0:03:00]}  exd6 {[%clk 0:02:44]} 6. h3 {[%clk 0:03:00]}  Be7 {[%clk 0:02:45]} 7. Nf3 {[%clk 0:03:00]}  O-O {[%clk 0:02:45]} 8. Bd3 {[%clk 0:02:56]}  c5 {[%clk 0:02:45]} 9. O-O {[%clk 0:02:53]}  c4 {[%clk 0:02:44]} 10. Be2 {[%clk 0:02:52]}  d5 {[%clk 0:02:44]} 11. Bf4 {[%clk 0:02:51]}  Bf5 {[%clk 0:02:24]} 12. a3 {[%clk 0:02:45]}  Nc6 {[%clk 0:02:23]} 13. Qd2 {[%clk 0:02:41]}  a6 {[%clk 0:02:20]} 14. Nd1 {[%clk 0:02:41]}  f6 {[%clk 0:02:10]} 15. Ne3 {[%clk 0:02:39]}  Be4 {[%clk 0:02:10]} 16. Rfe1 {[%clk 0:02:30]}  Bd6 {[%clk 0:02:03]} 17. Bxd6 {[%clk 0:02:27]}  Qxd6 {[%clk 0:02:03]} 18. c3 {[%clk 0:02:14]}  Rae8 {[%clk 0:02:02]} 19. Bd1 {[%clk 0:02:13]}  f5 {[%clk 0:01:55]} 20. Bc2 {[%clk 0:02:09]}  Bxf3 {[%clk 0:01:40]} 21. gxf3 {[%clk 0:02:09]}  Qh6 {[%clk 0:01:35]} 22. Nf1 {[%clk 0:02:01]}  Qxh3 {[%clk 0:01:25]} 23. Rxe8 {[%clk 0:01:57]}  Rxe8 {[%clk 0:01:25]} 24. Qf4 {[%clk 0:01:57]}  Qh6 {[%clk 0:00:45]} 25. Qxf5 {[%clk 0:01:39]}  g6 {[%clk 0:00:46]} 26. Qg4 {[%clk 0:01:22]}  Re2 {[%clk 0:00:42]} 27. Ne3 {[%clk 0:01:10]}  Qf8 {[%clk 0:00:35]} 28. Kg2 {[%clk 0:01:09]}  Qe7 {[%clk 0:00:30]} 29. Nf5 {[%clk 0:00:44]}  Qd7 {[%clk 0:00:24]} 30. Rh1 {[%clk 0:00:30]}  Rxc2 {[%clk 0:00:22]} 31. Nh6+ {[%clk 0:00:30]}  Kg7 {[%clk 0:00:19]} 32. Qf4 {[%clk 0:00:30]}  Qe7 {[%clk 0:00:10]} 33. Ng4 {[%clk 0:00:30]}  Nd7 {[%clk 0:00:09]} 34. Qh6+ {[%clk 0:00:28]}  Kg8 {[%clk 0:00:10]} 35. Qf4 {[%clk 0:00:28]}  Rxb2 {[%clk 0:00:09]} 36. Nh6+ {[%clk 0:00:25]}  Kg7 {[%clk 0:00:09]} 37. Ng4 {[%clk 0:00:25]}  Re2 {[%clk 0:00:10]} 38. Nh6 {[%clk 0:00:24]}  Qf6 {[%clk 0:00:07]} 39. Qc7 {[%clk 0:00:21]}  Re7 {[%clk 0:00:04]} 40. Ng4 {[%clk 0:00:21]}  Qg5 {[%clk 0:00:05]} 41. Qg3 {[%clk 0:00:20]}  h5 {[%clk 0:00:05]} 42. Ne3 {[%clk 0:00:20]}  Qxg3+ {[%clk 0:00:06]} 43. Kxg3 {[%clk 0:00:21]}  Nf6 {[%clk 0:00:05]} 44. Kg2 {[%clk 0:00:21]}  b5 {[%clk 0:00:06]} 45. Rb1 {[%clk 0:00:20]}  Na5 {[%clk 0:00:06]} 46. Rc1 {[%clk 0:00:20]}  Nb3 {[%clk 0:00:06]} 47. Rd1 {[%clk 0:00:21]}  Kf7 {[%clk 0:00:07]} 48. Kg3 {[%clk 0:00:21]}  g5 {[%clk 0:00:07]} 49. Nf5 {[%clk 0:00:20]}  Re2 {[%clk 0:00:07]} 50. Ne3 {[%clk 0:00:20]}  h4+ {[%clk 0:00:07]} 51. Kg2 {[%clk 0:00:20]}  Ra2 {[%clk 0:00:07]} 52. Rh1 {[%clk 0:00:19]}  Nh5 {[%clk 0:00:07]} 53. Nxd5 {[%clk 0:00:19]}  Nf4+ {[%clk 0:00:06]} 54. Nxf4 {[%clk 0:00:19]}  gxf4 {[%clk 0:00:07]} 55. Rxh4 {[%clk 0:00:20]}  Nc1 {[%clk 0:00:07]} 56. Rg4 {[%clk 0:00:20]}  Nd3 {[%clk 0:00:07]} 57. Kh3 {[%clk 0:00:20]}  Nxf2+ {[%clk 0:00:07]} 0-1


[Site "https://www.chess.com"]